[Event "*** Titled Tuesday Blitz"]
[Site "Chess.com"]
[Date "2020.01.07"]
[Round "2"]
[White "hansen"]
[Black "riconaipe"]
[Result "1/2-1/2"]
[WhiteElo "2876"]
[BlackElo "2591"]
[TimeControl "180+2"]
[EndTime "13:27:17 PST"]
[Termination "Game drawn by agreement"]

1. e4 {[%clk 0:03:01.9]} 1... c6 {[%clk 0:02:53.6]} 2. Nc3 {[%clk 0:03:02]} 2...
d5 {[%clk 0:02:54.3]} 3. Nf3 {[%clk 0:03:03.4]} 3... dxe4 {[%clk 0:02:50.3]} 4.
Nxe4 {[%clk 0:03:05.3]} 4... Nf6 {[%clk 0:02:51.2]} 5. Qe2 {[%clk 0:03:05.5]}
5... Nxe4 {[%clk 0:02:52]} 6. Qxe4 {[%clk 0:03:07.4]} 6... Qd5 {[%clk 0:02:53]}
7. Qe3 {[%clk 0:03:08.4]} 7... Qe6 {[%clk 0:02:42.7]} 8. b3 {[%clk 0:03:08.7]}
8... Qxe3+ {[%clk 0:02:43.4]} 9. fxe3 {[%clk 0:03:08.1]} 9... Bf5 {[%clk
0:02:44.2]} 10. c4 {[%clk 0:03:08.2]} 10... Nd7 {[%clk 0:02:43.6]} 11. d4 {[%clk
0:03:08.4]} 11... Nf6 {[%clk 0:02:44.3]} 12. Be2 {[%clk 0:03:04.7]} 12... e6
{[%clk 0:02:45.4]} 13. O-O {[%clk 0:03:05.5]} 13... Bd6 {[%clk 0:02:43.2]} 14.
h3 {[%clk 0:02:58]} 14... O-O {[%clk 0:02:41.5]} 15. Nh4 {[%clk 0:02:48.9]}
15... Be4 {[%clk 0:02:37.3]} 16. Bd2 {[%clk 0:02:49.6]} 16... Rfe8 {[%clk
0:02:30.1]} 17. Nf3 {[%clk 0:02:32.3]} 17... Bxf3 {[%clk 0:02:17.4]} 18. gxf3
{[%clk 0:02:25.7]} 18... e5 {[%clk 0:02:18.6]} 19. dxe5 {[%clk 0:02:26.6]} 19...
Bxe5 {[%clk 0:02:19.4]} 20. Rad1 {[%clk 0:02:27.4]} 20... Rad8 {[%clk
0:02:17.1]} 21. Bc1 {[%clk 0:02:25.9]} 21... Bc7 {[%clk 0:01:51.9]} 22. Kg2
{[%clk 0:02:18.7]} 22... Bb6 {[%clk 0:01:42.8]} 23. Rxd8 {[%clk 0:02:18.8]}
23... Rxd8 {[%clk 0:01:41.5]} 24. Rd1 {[%clk 0:02:19.4]} 24... Rxd1 {[%clk
0:01:33.8]} 25. Bxd1 {[%clk 0:02:21.3]} 25... Nd7 {[%clk 0:01:33.4]} 26. b4
{[%clk 0:02:16.6]} 26... a5 {[%clk 0:01:29.6]} 27. c5 {[%clk 0:02:12]} 27... Bc7
{[%clk 0:01:29.8]} 28. a3 {[%clk 0:02:13.5]} 28... axb4 {[%clk 0:01:17.3]} 29.
axb4 {[%clk 0:02:15.4]} 29... b6 {[%clk 0:01:18.5]} 30. cxb6 {[%clk 0:02:10]}
30... Nxb6 {[%clk 0:01:13.2]} 31. e4 {[%clk 0:02:10.2]} 31... Bd6 {[%clk
0:01:09.9]} 32. f4 {[%clk 0:01:41.3]} 32... Bxb4 {[%clk 0:01:10.5]} 33. e5
{[%clk 0:01:42.6]} 33... c5 {[%clk 0:00:56.8]} 34. Kf3 {[%clk 0:01:39]} 34...
Kf8 {[%clk 0:00:47.8]} 35. Ke4 {[%clk 0:01:39.2]} 35... Ke7 {[%clk 0:00:42.2]}
36. f5 {[%clk 0:01:40.4]} 36... f6 {[%clk 0:00:38.9]} 37. Bf4 {[%clk 0:01:34.5]}
37... Nc4 {[%clk 0:00:21.8]} 38. exf6+ {[%clk 0:01:35]} 38... gxf6 {[%clk
0:00:20.5]} 39. Kd5 {[%clk 0:01:34.3]} 39... Ne5 {[%clk 0:00:20.3]} 40. Be2
{[%clk 0:01:28.7]} 40... Ba3 {[%clk 0:00:13.9]} 41. h4 {[%clk 0:01:28.6]} 41...
Bb4 {[%clk 0:00:14.1]} 42. h5 {[%clk 0:01:29.7]} 42... Ba3 {[%clk 0:00:14.6]}
43. h6 {[%clk 0:01:31]} 43... c4 {[%clk 0:00:09.1]} 44. Bh5 {[%clk 0:01:23.2]}
44... c3 {[%clk 0:00:07.3]} 45. Bxe5 {[%clk 0:00:19.4]} 45... fxe5 {[%clk
0:00:09.2]} 46. Bd1 {[%clk 0:00:20]} 46... Kf6 {[%clk 0:00:10.4]} 47. Bc2 {[%clk
0:00:21]} 47... Bb2 {[%clk 0:00:04.4]} 48. Kc4 {[%clk 0:00:17.3]} 48... Ba1
{[%clk 0:00:05.5]} 49. Kd5 {[%clk 0:00:17.8]} 49... Bb2 {[%clk 0:00:07]} 50. Be4
{[%clk 0:00:18.9]} 50... Bc1 {[%clk 0:00:07.8]} 51. Kc4 {[%clk 0:00:19.5]} 51...
Bd2 {[%clk 0:00:08.8]} 52. Kb3 {[%clk 0:00:20.5]} 52... Bxh6 {[%clk 0:00:09.7]}
53. Kxc3 {[%clk 0:00:21.4]} 53... Kg5 {[%clk 0:00:10.5]} 54. Kd3 {[%clk
0:00:19.4]} 54... Bf8 {[%clk 0:00:09.1]} 55. f6 {[%clk 0:00:19.1]} 55... h5
{[%clk 0:00:09.7]} 56. f7 {[%clk 0:00:20.4]} 56... h4 {[%clk 0:00:10.8]} 57. Ke3
{[%clk 0:00:21.5]} 57... h3 {[%clk 0:00:11]} 58. Kf3 {[%clk 0:00:22.6]} 58...
Kf6 {[%clk 0:00:05.3]} 59. Kg3 {[%clk 0:00:21.3]} 59... Kxf7 {[%clk 0:00:05.8]}
60. Kxh3 {[%clk 0:00:22.3]} 60... Kf6 {[%clk 0:00:06.8]} 61. Kg4 {[%clk
0:00:23.5]} 61... Be7 {[%clk 0:00:07.1]} 1/2-1/2

[Event "*** Titled Tuesday Blitz"]
[Site "Chess.com"]
[Date "2020.01.07"]
[Round "2"]
[White "Alex_Molchanov"]
[Black "TigrVShlyape"]
[Result "1-0"]
[WhiteElo "2583"]
[BlackElo "2803"]
[TimeControl "180+2"]
[EndTime "13:27:18 PST"]
[Termination "Alex_Molchanov won by resignation"]

1. d4 {[%clk 0:03:01.9]} 1... Nf6 {[%clk 0:02:59.2]} 2. Nf3 {[%clk 0:03:02.3]}
2... g6 {[%clk 0:02:59.6]} 3. g3 {[%clk 0:03:03]} 3... Bg7 {[%clk 0:03:00.6]} 4.
Bg2 {[%clk 0:03:04.4]} 4... O-O {[%clk 0:03:01.6]} 5. O-O {[%clk 0:03:05.6]}
5... d6 {[%clk 0:03:02.7]} 6. c4 {[%clk 0:03:06.6]} 6... Nc6 {[%clk 0:03:03.4]}
7. Nc3 {[%clk 0:03:06.2]} 7... a5 {[%clk 0:03:04.6]} 8. Bf4 {[%clk 0:03:05.2]}
8... a4 {[%clk 0:03:04.7]} 9. Rc1 {[%clk 0:03:03.5]} 9... a3 {[%clk 0:03:04.8]}
10. b3 {[%clk 0:03:01.7]} 10... Nb4 {[%clk 0:03:05.8]} 11. Qd2 {[%clk
0:02:57.1]} 11... c6 {[%clk 0:03:06]} 12. e4 {[%clk 0:02:49.4]} 12... Qa5 {[%clk
0:03:06.1]} 13. e5 {[%clk 0:01:51]} 13... dxe5 {[%clk 0:03:04.3]} 14. Bxe5
{[%clk 0:01:47.3]} 14... Bf5 {[%clk 0:02:48.2]} 15. Nh4 {[%clk 0:01:30.7]} 15...
Be6 {[%clk 0:02:45]} 16. f4 {[%clk 0:01:17.2]} 16... Rfd8 {[%clk 0:02:44.5]} 17.
Qe2 {[%clk 0:01:12.1]} 17... Bg4 {[%clk 0:02:08.4]} 18. Bf3 {[%clk 0:01:06.6]}
18... Bxf3 {[%clk 0:01:56.6]} 19. Nxf3 {[%clk 0:01:01.4]} 19... Ne8 {[%clk
0:01:34]} 20. f5 {[%clk 0:00:49.2]} 20... Nd3 {[%clk 0:00:34.2]} 21. Qxd3 {[%clk
0:00:40.4]} 21... Bxe5 {[%clk 0:00:34.5]} 22. b4 {[%clk 0:00:32.3]} 22... Qc7
{[%clk 0:00:35]} 23. fxg6 {[%clk 0:00:30.4]} 23... hxg6 {[%clk 0:00:35.4]} 24.
Rcd1 {[%clk 0:00:14.7]} 24... Bg7 {[%clk 0:00:36]} 25. Ne4 {[%clk 0:00:13.6]}
25... Nf6 {[%clk 0:00:35.2]} 26. Nc5 {[%clk 0:00:12.2]} 26... Qc8 {[%clk
0:00:31.7]} 27. Qe2 {[%clk 0:00:12.9]} 27... b6 {[%clk 0:00:31.9]} 28. Nd3
{[%clk 0:00:13.8]} 28... Qc7 {[%clk 0:00:23.9]} 29. Nde5 {[%clk 0:00:15]} 29...
Rf8 {[%clk 0:00:20.2]} 30. Ng5 {[%clk 0:00:16.2]} 30... Rad8 {[%clk 0:00:17.8]}
31. g4 {[%clk 0:00:17.4]} 31... Qc8 {[%clk 0:00:17.9]} 32. Ngxf7 {[%clk
0:00:16.9]} 32... Rxf7 {[%clk 0:00:18.6]} 33. g5 {[%clk 0:00:18.4]} 33... Rff8
{[%clk 0:00:18.5]} 34. Nxg6 {[%clk 0:00:18.4]} 34... Rde8 {[%clk 0:00:18.5]} 35.
Nxf8 {[%clk 0:00:18.1]} 35... Rxf8 {[%clk 0:00:19.7]} 36. gxf6 {[%clk
0:00:18.9]} 36... Bxf6 {[%clk 0:00:19.8]} 37. Kh1 {[%clk 0:00:19.9]} 37... Qh3
{[%clk 0:00:19.6]} 38. Qg2+ {[%clk 0:00:20.5]} 38... Qxg2+ {[%clk 0:00:20.3]}
39. Kxg2 {[%clk 0:00:22.4]} 39... Rd8 {[%clk 0:00:20.8]} 40. d5 {[%clk
0:00:23.7]} 40... cxd5 {[%clk 0:00:20.9]} 41. Rxd5 {[%clk 0:00:25.6]} 41... Rc8
{[%clk 0:00:21.9]} 42. Rf4 {[%clk 0:00:27]} 42... Kf7 {[%clk 0:00:22.1]} 43. Re4
{[%clk 0:00:25.9]} 43... Rg8+ {[%clk 0:00:22.2]} 44. Kf2 {[%clk 0:00:25.9]}
44... Rh8 {[%clk 0:00:23.1]} 45. Kg2 {[%clk 0:00:21.4]} 45... Rg8+ {[%clk
0:00:24.1]} 46. Kf1 {[%clk 0:00:22]} 46... Rh8 {[%clk 0:00:25]} 47. Rd2 {[%clk
0:00:18]} 47... Rh3 {[%clk 0:00:25.4]} 48. Rc2 {[%clk 0:00:18.5]} 48... Bb2
{[%clk 0:00:23.5]} 49. c5 {[%clk 0:00:19.2]} 49... bxc5 {[%clk 0:00:23.4]} 50.
bxc5 {[%clk 0:00:21.1]} 50... Rh8 {[%clk 0:00:17.6]} 51. c6 {[%clk 0:00:22.2]}
51... Rc8 {[%clk 0:00:19.1]} 52. h4 {[%clk 0:00:17.5]} 52... e5 {[%clk
0:00:19.9]} 53. h5 {[%clk 0:00:18.3]} 53... Rc7 {[%clk 0:00:21.2]} 54. Rb4
{[%clk 0:00:18.7]} 54... Ke6 {[%clk 0:00:21.7]} 55. Rb7 {[%clk 0:00:19.9]} 55...
Kd6 {[%clk 0:00:22.4]} 56. Rxc7 {[%clk 0:00:21.3]} 56... Kxc7 {[%clk 0:00:23.4]}
57. Ke2 {[%clk 0:00:21.7]} 57... e4 {[%clk 0:00:23.4]} 58. Ke3 {[%clk
0:00:21.9]} 1-0

[Event "*** Titled Tuesday Blitz"]
[Site "Chess.com"]
[Date "2020.01.07"]
[Round "2"]
[White "nurgyulsalimova"]
[Black "2165149677570"]
[Result "1-0"]
[WhiteElo "2608"]
[BlackElo "2283"]
[TimeControl "180+2"]
[EndTime "13:27:20 PST"]
[Termination "nurgyulsalimova won by resignation"]

1. c4 {[%clk 0:03:01.9]} 1... c5 {[%clk 0:02:54.9]} 2. Nf3 {[%clk 0:03:02]} 2...
Nc6 {[%clk 0:02:55.4]} 3. g3 {[%clk 0:03:03.2]} 3... g6 {[%clk 0:02:56.5]} 4.
Bg2 {[%clk 0:03:04.4]} 4... Bg7 {[%clk 0:02:58]} 5. O-O {[%clk 0:03:04.6]} 5...
e5 {[%clk 0:02:59.6]} 6. Nc3 {[%clk 0:03:05.3]} 6... Nge7 {[%clk 0:03:00.6]} 7.
d3 {[%clk 0:03:05]} 7... O-O {[%clk 0:02:56.3]} 8. a3 {[%clk 0:03:00.9]} 8... d6
{[%clk 0:02:56.1]} 9. Rb1 {[%clk 0:03:01.9]} 9... a5 {[%clk 0:02:57.4]} 10. Bd2
{[%clk 0:03:02.8]} 10... h6 {[%clk 0:02:24.8]} 11. Ne1 {[%clk 0:03:02.6]} 11...
Be6 {[%clk 0:02:13.5]} 12. Nc2 {[%clk 0:03:02.6]} 12... Qd7 {[%clk 0:02:14.1]}
13. b4 {[%clk 0:03:01.9]} 13... axb4 {[%clk 0:01:56.4]} 14. axb4 {[%clk
0:03:02.4]} 14... cxb4 {[%clk 0:00:53.9]} 15. Nxb4 {[%clk 0:03:03.5]} 15... Nxb4
{[%clk 0:00:55.3]} 16. Rxb4 {[%clk 0:03:02.9]} 16... d5 {[%clk 0:00:56.9]} 17.
cxd5 {[%clk 0:02:53.5]} 17... Nxd5 {[%clk 0:00:56.9]} 18. Nxd5 {[%clk
0:02:54.4]} 18... Bxd5 {[%clk 0:00:58.8]} 19. Bxd5 {[%clk 0:02:55.1]} 19... Qxd5
{[%clk 0:01:00.7]} 20. Qb3 {[%clk 0:02:55.8]} 20... Qxb3 {[%clk 0:00:59.5]} 21.
Rxb3 {[%clk 0:02:57.7]} 21... Ra2 {[%clk 0:01:01.2]} 22. Rd1 {[%clk 0:02:58.1]}
22... Rb8 {[%clk 0:00:55.3]} 23. Rb5 {[%clk 0:02:50]} 23... Kf8 {[%clk
0:00:32.3]} 24. Kf1 {[%clk 0:02:49.6]} 24... Ke7 {[%clk 0:00:32.9]} 25. Be3
{[%clk 0:02:47]} 25... Kd7 {[%clk 0:00:14.8]} 26. Rdb1 {[%clk 0:02:47.1]} 26...
Kc6 {[%clk 0:00:07.2]} 27. Rb6+ {[%clk 0:02:43.3]} 27... Kc7 {[%clk 0:00:08.6]}
28. Rc1+ {[%clk 0:02:43.9]} 28... Kd7 {[%clk 0:00:10.1]} 29. Bc5 {[%clk
0:02:38.1]} 29... Ra6 {[%clk 0:00:06.5]} 30. Rb5 {[%clk 0:02:19.5]} 30... Rc6
{[%clk 0:00:06.2]} 31. Rcb1 {[%clk 0:02:19.4]} 31... Kc8 {[%clk 0:00:03.7]} 32.
Ba7 {[%clk 0:02:17.5]} 32... Ra8 {[%clk 0:00:04.5]} 33. Rxb7 {[%clk 0:02:11.9]}
33... Rc7 {[%clk 0:00:06]} 34. Rxc7+ {[%clk 0:01:55.5]} 34... Kxc7 {[%clk
0:00:07.9]} 35. Bb6+ {[%clk 0:01:48.1]} 35... Kd6 {[%clk 0:00:08]} 36. Rc1
{[%clk 0:01:43.6]} 36... Ra2 {[%clk 0:00:07.1]} 37. f3 {[%clk 0:01:38.8]} 37...
h5 {[%clk 0:00:04.9]} 38. Be3 {[%clk 0:01:36.5]} 38... Rb2 {[%clk 0:00:03.9]}
39. Rc8 {[%clk 0:01:33.1]} 39... Ra2 {[%clk 0:00:04.1]} 40. Rg8 {[%clk
0:01:32.9]} 40... Bf6 {[%clk 0:00:05.4]} 41. Rf8 {[%clk 0:01:32]} 41... Ke6
{[%clk 0:00:06.8]} 42. h4 {[%clk 0:01:29]} 42... Be7 {[%clk 0:00:08.2]} 43. Rc8
{[%clk 0:01:29.2]} 43... Rb2 {[%clk 0:00:08.9]} 44. Rc6+ {[%clk 0:01:29.4]}
44... Kd7 {[%clk 0:00:10.1]} 45. Rc4 {[%clk 0:01:28.7]} 45... Ke6 {[%clk
0:00:10.8]} 46. Kf2 {[%clk 0:01:26.8]} 46... Ra2 {[%clk 0:00:11.7]} 47. d4
{[%clk 0:01:20.6]} 47... exd4 {[%clk 0:00:12.5]} 48. Rxd4 {[%clk 0:01:22.4]}
48... f5 {[%clk 0:00:09.9]} 49. Rc4 {[%clk 0:01:20.7]} 49... Kf7 {[%clk
0:00:10.2]} 50. Bc5 {[%clk 0:01:14.3]} 50... Bxc5+ {[%clk 0:00:10.8]} 51. Rxc5
{[%clk 0:01:16.2]} 51... Ra6 {[%clk 0:00:12.2]} 52. Ke3 {[%clk 0:01:08.3]} 52...
Ra3+ {[%clk 0:00:10.3]} 53. Kf4 {[%clk 0:01:07.8]} 53... Ra2 {[%clk 0:00:09.2]}
54. e3 {[%clk 0:00:46.4]} 54... Ra3 {[%clk 0:00:10]} 55. Rc7+ {[%clk 0:00:41.6]}
55... Kg8 {[%clk 0:00:10.7]} 56. Kg5 {[%clk 0:00:30]} 56... Rxe3 {[%clk
0:00:11.9]} 57. Kxg6 {[%clk 0:00:30.3]} 57... Kf8 {[%clk 0:00:13.5]} 58. Rf7+
{[%clk 0:00:28.3]} 58... Kg8 {[%clk 0:00:13.7]} 59. Rxf5 {[%clk 0:00:29.7]} 1-0

[Event "*** Titled Tuesday Blitz"]
[Site "Chess.com"]
[Date "2020.01.07"]
[Round "2"]
[White "ExploringChess"]
[Black "Alexander_Moskalenko"]
[Result "1-0"]
[WhiteElo "2580"]
[BlackElo "2803"]
[TimeControl "180+2"]
[EndTime "13:27:25 PST"]
[Termination "ExploringChess won on time"]

1. e4 {[%clk 0:03:01.9]} 1... g6 {[%clk 0:03:01.9]} 2. d4 {[%clk 0:03:01.9]}
2... Bg7 {[%clk 0:03:02.6]} 3. Nf3 {[%clk 0:03:01.9]} 3... d6 {[%clk 0:03:04.2]}
4. h3 {[%clk 0:03:00.1]} 4... Nf6 {[%clk 0:03:03.6]} 5. Nc3 {[%clk 0:03:00.4]}
5... O-O {[%clk 0:03:04]} 6. Be3 {[%clk 0:02:58.9]} 6... c6 {[%clk 0:03:02.9]}
7. Bd3 {[%clk 0:02:57.9]} 7... b5 {[%clk 0:03:03.5]} 8. Ne2 {[%clk 0:02:58]}
8... Nbd7 {[%clk 0:03:01.8]} 9. Ng3 {[%clk 0:02:58.7]} 9... Bb7 {[%clk
0:03:02.3]} 10. c3 {[%clk 0:02:57.6]} 10... e5 {[%clk 0:02:58.3]} 11. O-O {[%clk
0:02:56.1]} 11... Qc7 {[%clk 0:02:58.2]} 12. a4 {[%clk 0:02:53.4]} 12... a6
{[%clk 0:02:57]} 13. Qd2 {[%clk 0:02:54]} 13... Rfe8 {[%clk 0:02:56.2]} 14. Bh6
{[%clk 0:02:45.5]} 14... d5 {[%clk 0:02:54.1]} 15. Bxg7 {[%clk 0:02:28.6]} 15...
Kxg7 {[%clk 0:02:54.2]} 16. Rfe1 {[%clk 0:02:22.1]} 16... dxe4 {[%clk
0:02:41.1]} 17. Bxe4 {[%clk 0:02:15.3]} 17... exd4 {[%clk 0:02:38]} 18. cxd4
{[%clk 0:02:11]} 18... Rad8 {[%clk 0:02:36.3]} 19. axb5 {[%clk 0:01:58.2]} 19...
cxb5 {[%clk 0:02:33.5]} 20. Bxb7 {[%clk 0:01:51]} 20... Qxb7 {[%clk 0:02:35.4]}
21. Qg5 {[%clk 0:01:52.4]} 21... Qb6 {[%clk 0:02:24.1]} 22. Nf5+ {[%clk
0:01:48.5]} 22... Kh8 {[%clk 0:02:24.8]} 23. Nh6 {[%clk 0:01:43.8]} 23... Kg7
{[%clk 0:02:21.8]} 24. Ne5 {[%clk 0:01:44.9]} 24... Rf8 {[%clk 0:02:15.1]} 25.
Nf5+ {[%clk 0:01:38.2]} 25... Kh8 {[%clk 0:02:15.2]} 26. Nh6 {[%clk 0:01:38.6]}
26... Kg7 {[%clk 0:02:15.7]} 27. h4 {[%clk 0:01:30.8]} 27... Rde8 {[%clk
0:01:48.7]} 28. Ra3 {[%clk 0:01:24.8]} 28... Re6 {[%clk 0:01:42.7]} 29. Rae3
{[%clk 0:01:16.4]} 29... Nxe5 {[%clk 0:01:31.1]} 30. dxe5 {[%clk 0:01:17.2]}
30... Ng8 {[%clk 0:01:32.4]} 31. Nf5+ {[%clk 0:01:15.4]} 31... Kh8 {[%clk
0:01:32.2]} 32. h5 {[%clk 0:01:16.6]} 32... Qd8 {[%clk 0:01:16.7]} 33. Qxd8
{[%clk 0:01:10.4]} 33... Rxd8 {[%clk 0:01:18.6]} 34. hxg6 {[%clk 0:01:11.7]}
34... fxg6 {[%clk 0:01:20.1]} 35. Nd6 {[%clk 0:01:08.6]} 35... Kg7 {[%clk
0:01:16]} 36. b4 {[%clk 0:01:09.4]} 36... Ne7 {[%clk 0:01:11.7]} 37. Rc1 {[%clk
0:01:08.8]} 37... h5 {[%clk 0:00:57.5]} 38. Rc7 {[%clk 0:01:05.5]} 38... Kg8
{[%clk 0:00:51.9]} 39. Rc5 {[%clk 0:00:46.3]} 39... Kg7 {[%clk 0:00:49.9]} 40.
Rg3 {[%clk 0:00:44.5]} 40... Rd7 {[%clk 0:00:45]} 41. f4 {[%clk 0:00:43.8]}
41... Rdxd6 {[%clk 0:00:42.1]} 42. exd6 {[%clk 0:00:41.2]} 42... Rxd6 {[%clk
0:00:44]} 43. f5 {[%clk 0:00:41.9]} 43... h4 {[%clk 0:00:45.6]} 44. Rg4 {[%clk
0:00:39.7]} 44... Kf7 {[%clk 0:00:47]} 45. fxg6+ {[%clk 0:00:39.2]} 45... Nxg6
{[%clk 0:00:47.5]} 46. Rf5+ {[%clk 0:00:39.6]} 46... Kg7 {[%clk 0:00:44]} 47.
Re4 {[%clk 0:00:36.5]} 47... Kh6 {[%clk 0:00:41.7]} 48. Kh2 {[%clk 0:00:37.4]}
48... Kg7 {[%clk 0:00:38.7]} 49. Kh3 {[%clk 0:00:32.2]} 49... Rf6 {[%clk
0:00:40]} 50. Kg4 {[%clk 0:00:29.3]} 50... Rc6 {[%clk 0:00:33.9]} 51. Kh5 {[%clk
0:00:29.1]} 51... Rc8 {[%clk 0:00:31.1]} 52. Re6 {[%clk 0:00:27]} 52... Rh8+
{[%clk 0:00:32.5]} 53. Kg5 {[%clk 0:00:25.7]} 53... Nf8 {[%clk 0:00:28.5]} 54.
Re7+ {[%clk 0:00:26.1]} 54... Kg8 {[%clk 0:00:30]} 55. Rff7 {[%clk 0:00:22.1]}
55... Ne6+ {[%clk 0:00:29.4]} 56. Kf5 {[%clk 0:00:22.6]} 56... Nd4+ {[%clk
0:00:22.8]} 57. Kg6 {[%clk 0:00:20.9]} 1-0

[Event "*** Titled Tuesday Blitz"]
[Site "Chess.com"]
[Date "2020.01.07"]
[Round "2"]
[White "SavelievAlexei"]
[Black "francyIM"]
[Result "1-0"]
[WhiteElo "2306"]
[BlackElo "2601"]
[TimeControl "180+2"]
[EndTime "13:27:32 PST"]
[Termination "SavelievAlexei won by resignation"]

1. e4 {[%clk 0:02:52.1]} 1... e5 {[%clk 0:02:57.7]} 2. Nf3 {[%clk 0:02:52.9]}
2... Nc6 {[%clk 0:02:59.6]} 3. Bc4 {[%clk 0:02:54]} 3... Bc5 {[%clk 0:02:55.4]}
4. c3 {[%clk 0:02:53.6]} 4... Nf6 {[%clk 0:02:55.9]} 5. d4 {[%clk 0:02:54.7]}
5... exd4 {[%clk 0:02:56.9]} 6. e5 {[%clk 0:02:56]} 6... d5 {[%clk 0:02:57.1]}
7. Bb5 {[%clk 0:02:56.6]} 7... Ne4 {[%clk 0:02:58.2]} 8. cxd4 {[%clk 0:02:57.7]}
8... Bb4+ {[%clk 0:02:57.1]} 9. Bd2 {[%clk 0:02:58.6]} 9... Nxd2 {[%clk
0:02:58]} 10. Nbxd2 {[%clk 0:02:59.8]} 10... O-O {[%clk 0:02:59.8]} 11. h3
{[%clk 0:02:57]} 11... f6 {[%clk 0:03:00.8]} 12. O-O {[%clk 0:02:38.9]} 12...
Ne7 {[%clk 0:02:59.2]} 13. Bd3 {[%clk 0:02:15.7]} 13... c6 {[%clk 0:02:54.7]}
14. Qc2 {[%clk 0:02:14.6]} 14... f5 {[%clk 0:02:54.5]} 15. a3 {[%clk 0:02:09]}
15... Ba5 {[%clk 0:02:54.8]} 16. b4 {[%clk 0:02:10.2]} 16... Bb6 {[%clk
0:02:54.7]} 17. Nb3 {[%clk 0:02:11.8]} 17... h6 {[%clk 0:02:53.6]} 18. a4 {[%clk
0:02:05.2]} 18... a6 {[%clk 0:02:53.7]} 19. Nc5 {[%clk 0:02:02.8]} 19... a5
{[%clk 0:02:54]} 20. b5 {[%clk 0:02:02.3]} 20... cxb5 {[%clk 0:02:54.1]} 21.
Bxb5 {[%clk 0:02:01.9]} 21... f4 {[%clk 0:02:49]} 22. e6 {[%clk 0:01:18.6]}
22... Bxc5 {[%clk 0:02:48.8]} 23. Qxc5 {[%clk 0:01:19.7]} 23... Bxe6 {[%clk
0:02:49.3]} 24. Rfe1 {[%clk 0:01:21]} 24... Rf6 {[%clk 0:02:50.2]} 25. Ra2
{[%clk 0:01:19.7]} 25... Rc8 {[%clk 0:02:50.3]} 26. Qa3 {[%clk 0:01:20.4]} 26...
Nc6 {[%clk 0:02:44.3]} 27. Rae2 {[%clk 0:01:16.4]} 27... Bf5 {[%clk 0:02:31.4]}
28. Qb3 {[%clk 0:00:34.9]} 28... Kh7 {[%clk 0:02:29.8]} 29. Bd3 {[%clk
0:00:17.9]} 29... Qd7 {[%clk 0:02:18.8]} 30. Bxf5+ {[%clk 0:00:18]} 30... Qxf5
{[%clk 0:02:20.7]} 31. Qxb7 {[%clk 0:00:18]} 31... Rb8 {[%clk 0:02:11.9]} 32.
Qc7 {[%clk 0:00:18.5]} 32... Rb4 {[%clk 0:02:12.2]} 33. Re8 {[%clk 0:00:11.8]}
33... Nxd4 {[%clk 0:02:05.6]} 34. Nxd4 {[%clk 0:00:12.7]} 34... Rxd4 {[%clk
0:02:07.5]} 35. Qd8 {[%clk 0:00:13.3]} 35... Re4 {[%clk 0:02:06.7]} 36. Rh8+
{[%clk 0:00:13.4]} 36... Kg6 {[%clk 0:02:07.2]} 37. Rd1 {[%clk 0:00:14.7]} 37...
Re5 {[%clk 0:01:41.8]} 38. Re8 {[%clk 0:00:15]} 38... f3 {[%clk 0:01:25.6]} 39.
Rxe5 {[%clk 0:00:15.2]} 39... Qxe5 {[%clk 0:01:27.5]} 40. Qxd5 {[%clk
0:00:16.5]} 40... Qxd5 {[%clk 0:01:16.4]} 41. Rxd5 {[%clk 0:00:18.4]} 41... Rf5
{[%clk 0:01:17.9]} 42. Rd6+ {[%clk 0:00:19.6]} 42... Kh7 {[%clk 0:01:13.4]} 43.
Ra6 {[%clk 0:00:18.2]} 43... fxg2 {[%clk 0:01:12.3]} 44. Kxg2 {[%clk 0:00:19.3]}
44... g5 {[%clk 0:01:13.7]} 45. Kg3 {[%clk 0:00:19.6]} 45... Kg7 {[%clk
0:01:14.9]} 46. f3 {[%clk 0:00:19.4]} 46... Kf7 {[%clk 0:01:15.4]} 47. Rxh6
{[%clk 0:00:14.4]} 47... Rf4 {[%clk 0:01:12.6]} 48. h4 {[%clk 0:00:15.7]} 48...
Rf5 {[%clk 0:01:12.2]} 49. Kg4 {[%clk 0:00:04.9]} 49... Rf4+ {[%clk 0:01:09.1]}
50. Kg3 {[%clk 0:00:05]} 50... Rf5 {[%clk 0:01:07.3]} 51. hxg5 {[%clk
0:00:05.3]} 51... Rxg5+ {[%clk 0:01:07.9]} 52. Kf2 {[%clk 0:00:05.7]} 52... Rc5
{[%clk 0:01:07.6]} 53. Ra6 {[%clk 0:00:06.2]} 53... Ke7 {[%clk 0:01:07.8]} 54.
Kg3 {[%clk 0:00:06.3]} 54... Kd7 {[%clk 0:01:03.2]} 55. f4 {[%clk 0:00:07.7]}
55... Kc7 {[%clk 0:01:04.3]} 56. Kg4 {[%clk 0:00:08.3]} 56... Kb7 {[%clk
0:01:04.5]} 57. Rd6 {[%clk 0:00:09.2]} 57... Rc4 {[%clk 0:01:05.2]} 58. Kg5
{[%clk 0:00:10.6]} 58... Rxa4 {[%clk 0:01:05.9]} 59. f5 {[%clk 0:00:12.2]} 59...
Ra1 {[%clk 0:01:07.2]} 60. f6 {[%clk 0:00:13.4]} 60... Rg1+ {[%clk 0:01:08.3]}
61. Kf5 {[%clk 0:00:14.2]} 61... Rf1+ {[%clk 0:01:09.4]} 62. Ke6 {[%clk
0:00:15.6]} 62... Re1+ {[%clk 0:01:09.8]} 63. Kd7 {[%clk 0:00:16.8]} 63... Rf1
{[%clk 0:01:11]} 64. Ke7 {[%clk 0:00:17.5]} 64... a4 {[%clk 0:01:10.1]} 65. f7
{[%clk 0:00:18.1]} 65... Re1+ {[%clk 0:01:06.6]} 66. Re6 {[%clk 0:00:19.1]} 1-0